bitfinex/quotes_SOLUSD_20250901
["timestamp","ask_amount","ask_price","bid_price","bid_amount"]
[1756708805913,0.06,199.17,199.16,136.77015815]
[1756708806111,0.06,199.17,199.16,123.03240257]
[1756708806409,0.06,199.17,199.16,162.37456414]
[1756708806796,0.06,199.17,199.16,166.05533487]
[1756708807002,0.06,199.17,199.16,179.65092888]
[1756708807424,1e-08,199.17,199.16,179.65092888]
[1756708807640,1e-08,199.17,199.16,63.65092888]
[1756708808189,1e-08,199.19,199.18,13.59559401]
[1756708808410,1e-08,199.2,199.19,39.73775558]
[1756708808617,1e-08,199.2,199.19,43.41852631]
[1756708809312,0.06,199.21,199.19,43.41852631]
[1756708809313,1e-08,199.21,199.2,39.73775558]
[1756708809623,1e-08,199.21,199.2,82.61852631]
[1756708810196,1e-08,199.21,199.2,87.63860663]
[1756708810514,1e-08,199.21,199.2,203.63860663]
[1756708811826,1e-08,199.21,199.2,207.51937763]
[1756708812401,1e-08,199.21,199.2,203.8386069]
[1756708812606,1e-08,199.21,199.2,207.51937763]
[1756708817427,1e-08,199.21,199.2,211.20014836]
[1756708819227,1e-08,199.21,199.2,164.6386069]
[1756708819439,1e-08,199.21,199.2,207.49937763]
[1756708821052,1e-08,199.21,199.2,211.18014836]
[1756708821356,1e-08,199.21,199.2,207.49937763]
[1756708822550,1e-08,199.21,199.2,168.31937763]
[1756708822756,1e-08,199.21,199.2,164.49644533]
[1756708823062,1e-08,199.21,199.2,164.06085132]
[1756708823249,1e-08,199.21,199.2,125.04301289]
[1756708823433,1e-08,199.21,199.2,164.20301289]
[1756708823852,1e-08,199.21,199.2,207.47937763]
[1756708825241,1e-08,199.21,199.2,185.16014836]
[1756708828087,1e-08,199.21,199.2,69.16014836]
[1756708829476,1e-08,199.21,199.2,65.47937763]
[1756708830480,1e-08,199.21,199.2,69.16014836]
[1756708831164,1e-08,199.21,199.2,185.16014836]
[1756708832157,1e-08,199.21,199.2,181.47937763]
[1756708834070,1e-08,199.21,199.2,142.31937763]
[1756708834274,1e-08,199.21,199.2,181.47937763]
[1756708834500,1e-08,199.21,199.2,142.31937763]
[1756708834683,1e-08,199.21,199.2,181.47937763]
[1756708835997,1e-08,199.21,199.2,138.6386069]
[1756708836196,1e-08,199.21,199.2,181.31721606]
[1756708836500,1e-08,199.21,199.2,207.45937763]
[1756708837082,1e-08,199.21,199.2,207.48937763]
[1756708837400,1e-08,199.21,199.2,168.34937763]
[1756708837605,1e-08,199.21,199.2,181.48937763]
[1756708838383,1e-08,199.21,199.2,207.48937763]
[1756708839209,1e-08,199.21,199.2,181.48937763]
[1756708839384,1e-08,199.21,199.2,185.17014836]
[1756708840511,0.06,199.25,199.24,39.59559401]
[1756708840809,0.06,199.25,199.24,82.55852631]
[1756708841288,0.06,199.25,199.24,84.56882931]
[1756708841899,0.2,199.28,199.25,13.73775558]
[1756708842087,0.2,199.28,199.27,3.8229323]
[1756708842913,0.2,199.28,199.27,7.5037023]
[1756708843307,0.2,199.28,199.27,12.52201915]
[1756708843614,0.1,199.29,199.28,13.73775558]
[1756708843904,0.1,199.29,199.28,56.55852631]
[1756708844409,0.1,199.29,199.28,61.54343396]
[1756708845190,0.1,199.29,199.28,57.86266323]
[1756708845398,0.1,199.29,199.28,66.56149899]
[1756708845695,0.1,199.29,199.28,182.56149899]
[1756708845909,209.7,199.37,199.28,182.56149899]
[1756708846103,19.3452304,199.38,199.33,3.68077073]
[1756708846405,3.68077073,199.37,199.34,39.14]
[1756708846605,3.68077073,199.37,199.35,39.14]
[1756708846912,23.02600113,199.38,199.35,39.14]
[1756708847391,23.02600113,199.38,199.36,5.01605136]
[1756708847748,23.02600113,199.38,199.37,39.14]
[1756708851816,23.02600113,199.38,199.37,44.15579976]
[1756708852023,23.02600113,199.38,199.37,39.14]
[1756708853119,23.02600113,199.38,199.37,44.15579976]
[1756708853317,23.02600113,199.38,199.37,5.01579976]
[1756708853520,23.02600113,199.38,199.37,39.12]
[1756708854018,19.3452304,199.38,199.37,39.12]
[1756708854227,23.02600113,199.38,199.37,39.12]
[1756708855625,23.02600113,199.38,199.36,5.01597796]
[1756708856132,3.68077073,199.37,199.32,3.8229323]
[1756708856605,3.68077073,199.37,199.33,53.894483]
[1756708857206,3.68077073,199.37,199.33,38.821]
[1756708859207,19.4052304,199.38,199.33,38.821]
[1756708859412,3.68077073,199.37,199.33,38.821]
[1756708860240,23.08600113,199.38,199.33,38.821]
[1756708860436,23.08600113,199.38,199.33,53.894483]
[1756708861012,19.4052304,199.38,199.33,53.894483]
[1756708861215,23.08600113,199.38,199.33,53.894483]
[1756708861626,23.08600113,199.38,199.33,15.073483]
[1756708861943,3.68077073,199.36,199.34,39.1]
[1756708862541,3.68077073,199.37,199.32,15.074241]
[1756708862709,3.68077073,199.34,199.33,39.1]
[1756708862909,3.68077073,199.35,199.33,39.1]
[1756708863311,19.4052304,199.38,199.33,42.78077073]
[1756708863612,19.4052304,199.38,199.34,3.68077073]
[1756708863811,19.4052304,199.38,199.35,39.1]
[1756708865513,23.08600113,199.38,199.35,39.1]
[1756708866033,23.08600113,199.38,199.36,39.1]
[1756708867752,19.4052304,199.38,199.36,39.1]
[1756708868225,0.06,199.38,199.36,39.1]
[1756708869046,0.06,199.38,199.36,155.1]
[1756708869933,0.06,199.38,199.36,116.0]
[1756708870135,0.06,199.38,199.37,39.1]
[1756708873546,3.74077073,199.38,199.37,39.1]
[1756708874434,3.74077073,199.38,199.37,39.08]
[1756708876132,0.06,199.38,199.37,39.08]
[1756708876344,3.74077073,199.38,199.37,39.08]
[1756708878546,0.06,199.38,199.37,39.08]
[1756708879050,0.06,199.38,199.37,39.22216157]
[1756708880040,0.06,199.38,199.37,42.90293257]
[1756708881961,0.06,199.38,199.37,158.90293257]
[1756708882649,0.06,199.38,199.37,119.82293257]
[1756708882835,0.06,199.38,199.37,158.90293257]
[1756708885149,0.06,199.38,199.37,172.49852658]
[1756708885352,0.06,199.38,199.37,176.17929731]
[1756708885839,0.06,199.38,199.37,172.49852658]
[1756708886044,0.06,199.38,199.37,56.49852658]
[1756708888739,0.06,199.38,199.37,56.47852658]
[1756708889059,0.06,199.38,199.37,172.47852658]
[1756708894560,0.06,199.38,199.37,176.15929731]
[1756708896251,0.06,199.38,199.37,176.13929731]
[1756708898055,0.06,199.38,199.37,60.13929731]
[1756708898250,0.06,199.4,199.39,13.59559401]
[1756708898451,0.06,199.4,199.39,82.45852631]
[1756708898651,0.06,199.4,199.39,43.41852631]
[1756708898870,0.06,199.4,199.39,52.77775558]
[1756708899082,0.06,199.4,199.39,71.52292731]
[1756708900965,0.06,199.4,199.39,187.52292731]
[1756708901543,0.06,199.4,199.39,148.48292731]
[1756708901748,0.06,199.4,199.39,187.52292731]
[1756708903541,0.06,199.4,199.39,191.20369804]
[1756708904549,0.06,199.4,199.39,183.84215658]
[1756708904773,0.06,199.4,199.39,187.52292731]
[1756708906453,0.06,199.4,199.39,191.20369804]
[1756708906853,0.06,199.4,199.39,187.52292731]
[1756708907672,0.06,199.4,199.39,268.12292731]
[1756708909980,0.06,199.4,199.39,268.10292731]
[1756708910182,0.06,199.4,199.39,225.40215658]
[1756708910381,0.06,199.4,199.39,229.08292731]
[1756708910677,0.06,199.4,199.39,268.10292731]
[1756708912267,0.06,199.4,199.39,229.08292731]
[1756708912474,0.06,199.4,199.39,264.42215658]
[1756708912775,0.06,199.4,199.39,268.10292731]
[1756708913362,0.06,199.4,199.39,264.42215658]
[1756708913566,0.06,199.4,199.39,268.10292731]
[1756708913771,0.06,199.4,199.39,187.50292731]
[1756708918379,0.06,199.4,199.39,144.80215658]
[1756708918588,0.06,199.4,199.39,183.67999501]
[1756708918894,0.06,199.4,199.39,170.064401]
[1756708919075,0.06,199.4,199.39,155.0]
[1756708919390,0.06,199.4,199.39,158.680771]
[1756708919764,0.06,199.4,199.39,172.27636501]
[1756708919964,0.06,199.4,199.39,176.09929731]
[1756708921202,0.06,199.4,199.39,133.41852658]
[1756708921379,0.06,199.4,199.39,184.82293257]
[1756708921568,0.06,199.4,199.39,184.680771]
[1756708921768,0.06,199.4,199.39,68.680771]
[1756708922167,0.06,199.4,199.39,68.82293257]
[1756708923066,0.06,199.4,199.39,34.83822922]
[1756708923394,3.74077073,199.4,199.39,44.01529665]
[1756708923695,0.06,199.4,199.39,44.01529665]
[1756708924500,3.74077073,199.4,199.39,44.01529665]
[1756708924800,3.74077073,199.4,199.39,5.01529665]
[1756708924988,3.74077073,199.4,199.39,39.0]
[1756708925701,0.06,199.4,199.39,44.15745822]
[1756708926494,0.06,199.4,199.39,47.83822922]
[1756708927194,1e-08,199.4,199.39,51.51899995]
[1756708927973,1e-08,199.4,199.39,193.51899995]
[1756708928906,1e-08,199.4,199.39,207.11459396]
[1756708929780,1e-08,199.4,199.39,203.43382323]
[1756708929980,1e-08,199.4,199.39,207.11459396]
[1756708930476,1e-08,199.42,199.41,26.0]
[1756708930676,1e-08,199.42,199.41,68.68077073]
[1756708932084,1e-08,199.42,199.41,73.69556437]
[1756708932783,1e-08,199.42,199.41,85.08070664]
[1756708932995,1e-08,199.42,199.41,88.76147737]
[1756708935675,1e-08,199.42,199.41,102.49923295]
[1756708936591,1e-08,199.42,199.41,218.49923295]
[1756708938084,1e-08,199.42,199.41,179.49923295]
[1756708938292,1e-08,199.42,199.41,218.49923295]
[1756708939707,1e-08,199.42,199.41,179.49923295]
[1756708940002,1e-08,199.42,199.41,218.49923295]
[1756708941783,1e-08,199.42,199.41,102.49923295]
[1756708942189,209.7,199.53,199.44,39.73775558]
[1756708942504,3.68077073,199.52,199.46,3.8229323]
[1756708942707,3.68077073,199.52,199.47,38.98]
[1756708943110,3.680771,199.55,199.47,54.042888]
[1756708943283,3.68077073,199.52,199.47,54.042888]
[1756708943902,3.68077073,199.51,199.47,54.042888]
[1756708944205,3.68077073,199.51,199.48,5.01303388]
[1756708944414,3.680771,199.55,199.49,38.98]
[1756708944590,3.68077073,199.51,199.49,38.98]
[1756708944786,3.68077073,199.51,199.49,154.98]
[1756708945392,3.68077073,199.52,199.49,154.98]
[1756708945595,3.68077073,199.51,199.49,154.98]
[1756708946098,3.68077073,199.52,199.49,154.98]
[1756708946293,3.68077073,199.52,199.5,5.01253132]
[1756708946499,3.68077073,199.52,199.51,38.98]
[1756708947511,3.68077073,199.52,199.51,43.99228008]
[1756708949206,3.68077073,199.52,199.49,5.01278259]
[1756708949408,3.68077073,199.5,199.49,5.01278259]
[1756708949593,3.68077073,199.5,199.49,43.99278259]
[1756708951112,3.680771,199.55,199.49,43.99278259]
[1756708951301,3.68077073,199.5,199.49,5.01278259]
[1756708951503,3.68077073,199.5,199.49,43.99278259]
[1756708955393,3.68077073,199.51,199.49,43.99278259]
[1756708958099,3.68077073,199.5,199.49,159.99278259]
[1756708958700,0.06,199.52,199.49,159.99278259]
[1756708959011,3.68077073,199.51,199.49,159.99278259]
[1756708959408,0.06,199.52,199.49,159.99278259]
[1756708959607,3.68077073,199.51,199.49,159.99278259]
[1756708961124,3.68077073,199.51,199.49,43.99278259]
[1756708961320,0.06,199.52,199.49,43.99278259]
[1756708961518,3.74077073,199.52,199.49,43.99278259]
[1756708962530,0.06,199.52,199.49,43.99278259]
[1756708962731,3.74077073,199.52,199.49,43.99278259]
[1756708963127,0.06,199.52,199.49,59.05491459]
[1756708963434,3.74077073,199.52,199.49,59.05491459]
[1756708963612,0.06,199.52,199.49,59.05491459]
[1756708964013,3.74077073,199.52,199.49,59.05491459]
[1756708964228,0.06,199.52,199.49,175.05491459]
[1756708964619,0.06,199.52,199.49,159.99278259]
[1756708964821,0.06,199.52,199.5,15.061375]
[1756708965013,0.06,199.52,199.51,38.96]
[1756708966523,0.06,199.52,199.51,43.97228008]
[1756708967732,0.06,199.52,199.51,47.79521238]
[1756708968138,15.059107,199.61,199.52,39.73775558]
[1756708968436,15.059107,199.61,199.55,2.34599395]
[1756708968611,2.34599395,199.6,199.56,43.95102425]
[1756708968931,21.00215529,199.62,199.56,43.95102425]
[1756708969136,21.00215529,199.62,199.56,56.47858488]
[1756708969453,2.34599395,199.61,199.56,56.47858488]
[1756708969630,2.34599395,199.6,199.56,56.47858488]
[1756708969937,2.34599395,199.6,199.57,38.94]
[1756708970135,15.056084,199.65,199.57,38.94]
[1756708970343,3.66419326,199.6,199.57,38.94]
[1756708970639,3.66419326,199.6,199.58,5.01052209]
[1756708970812,3.66419326,199.6,199.59,38.94]
[1756708971017,15.056084,199.65,199.59,38.94]
[1756708971527,132.5,199.66,199.59,38.94]
[1756708971730,3.66419326,199.6,199.59,38.94]
[1756708972126,15.055329,199.65,199.59,38.94]
[1756708972331,3.66419326,199.6,199.59,38.94]
[1756708972846,3.66419326,199.6,199.59,43.95027105]
[1756708973229,15.055329,199.65,199.59,43.95027105]
[1756708973747,3.72419326,199.6,199.59,43.95027105]
[1756708975147,0.06,199.6,199.59,43.95027105]
[1756708975362,3.72419326,199.6,199.59,43.95027105]
[1756708976222,0.06,199.6,199.59,43.95027105]
[1756708979836,3.72419326,199.6,199.59,43.95027105]
[1756708980548,3.72419326,199.6,199.59,38.92]
[1756708982151,3.72419326,199.6,199.57,5.01075343]
[1756708982351,3.66419326,199.58,199.57,5.01075343]
[1756708982548,3.66419326,199.58,199.57,38.92]
[1756708983326,3.66419326,199.58,199.56,5.01102425]
[1756708983548,3.66419326,199.57,199.5,12.53108458]
[1756708983752,3.66419326,199.53,199.51,38.92]
[1756708983955,3.66419326,199.53,199.51,44.01556212]
[1756708984332,3.66419326,199.54,199.52,0.14216157]
[1756708984538,3.66419326,199.54,199.53,44.07393924]
[1756708984854,3.66419326,199.54,199.53,38.92]
[1756708985550,3.66419326,199.54,199.48,15.059863]
[1756708985851,3.66419326,199.49,199.46,5.04916323]
[1756708986042,3.66419326,199.49,199.47,38.92]
[1756708986544,3.66419326,199.49,199.48,5.01303388]
[1756708986943,31.01137778,199.55,199.48,5.01303388]
[1756708987142,15.059863,199.58,199.48,17.5456186]
[1756708987336,3.66419326,199.54,199.49,68.58419326]
[1756708987651,3.72419326,199.6,199.5,0.14216157]
[1756708987836,3.66419326,199.54,199.52,0.14216157]
[1756708988027,3.66419326,199.54,199.53,38.92]
[1756708988641,3.66419326,199.54,199.47,116.0]
[1756708988851,3.66419326,199.5,199.48,5.01303388]
[1756708989155,3.66419326,199.5,199.48,43.93303388]
[1756708989333,3.66419326,199.5,199.49,0.14216157]
[1756708989643,3.66419326,199.51,199.49,0.14216157]
[1756708989966,3.66419326,199.51,199.5,43.93253132]
[1756708990557,3.66419326,199.52,199.5,5.01253132]
[1756708990734,3.66419326,199.52,199.51,38.92]
[1756708991126,3.72419326,199.6,199.52,0.14216157]
[1756708991127,5.071034,199.6,199.52,0.14216157]
[1756708991328,3.66419326,199.53,199.52,0.14216157]
[1756708991645,8.73421361,199.6,199.5,5.01253132]
[1756708991951,3.66419326,199.52,199.51,43.93228008]
[1756708992153,3.66419326,199.53,199.51,5.01228008]
[1756708992351,3.66419326,199.53,199.51,43.93228008]
[1756708992732,3.66419326,199.52,199.51,38.92]
[1756708993730,3.66419326,199.52,199.5,5.0124851]
[1756708994066,3.66419326,199.51,199.5,0.03]
[1756708994237,3.66419326,199.51,199.5,38.95]
[1756708994974,8.67647334,199.51,199.5,0.03]
[1756708995136,12.3406666,199.51,199.5,0.03]
[1756708995464,12.3406666,199.51,199.5,38.95]
[1756708996752,3.66419326,199.51,199.5,38.95]
[1756708997739,13.59559401,199.57,199.5,38.95]
[1756708997740,5.0110787,199.56,199.5,38.95]
[1756708997958,3.66419326,199.51,199.5,38.95]
[1756708998560,8.67647334,199.51,199.5,38.95]
[1756709000865,29.66419326,199.51,199.5,38.95]
[1756709003077,29.66419326,199.51,199.5,0.03]
[1756709003285,29.66419326,199.51,199.5,38.95]
[1756709003466,3.66419326,199.51,199.5,38.95]
[1756709003778,8.67647334,199.51,199.5,38.95]
[1756709005152,3.66419326,199.51,199.5,38.95]
[1756709008586,8.67647334,199.51,199.5,38.95]
[1756709009156,3.66419326,199.51,199.5,38.95]
[1756709009558,8.67647334,199.51,199.5,38.95]
[1756709010094,3.66419326,199.51,199.5,38.95]
[1756709010984,135.12018297,199.55,199.5,38.95]
[1756709011293,132.5,199.55,199.5,43.96252022]
[1756709011577,132.5,199.55,199.5,0.03]
[1756709011578,3.66419326,199.51,199.5,0.03]
[1756709011784,3.66419326,199.51,199.5,38.93]
[1756709012156,132.5,199.55,199.5,38.93]
[1756709012361,3.66419326,199.51,199.5,38.93]
[1756709012576,2.67986,199.58,199.5,38.93]
[1756709012771,3.66419326,199.55,199.51,5.01228008]
[1756709013087,3.66419326,199.56,199.51,121.01228008]
[1756709013286,0.06,199.58,199.52,0.14216157]
[1756709013461,3.66419326,199.56,199.52,0.14216157]
[1756709014573,3.66419326,199.56,199.53,5.01177767]
[1756709014770,3.66419326,199.56,199.54,38.9]
[1756709014986,3.66419326,199.57,199.54,38.9]
[1756709016581,3.66419326,199.57,199.53,5.01177767]
[1756709016799,3.66419326,199.57,199.54,38.9]
[1756709017387,0.06,199.58,199.52,5.15417219]
[1756709017388,3.66419326,199.55,199.52,5.15417219]
[1756709017583,0.06,199.58,199.53,38.9]
[1756709017792,3.66419326,199.55,199.53,38.9]
[1756709018485,3.66419326,199.54,199.51,5.01226445]
[1756709018687,3.66419326,199.54,199.52,43.91193194]
[1756709019398,0.06,199.58,199.53,38.9]
[1756709019605,3.66419326,199.54,199.53,38.9]
[1756709021489,3.66419326,199.54,199.53,43.91177767]
[1756709022004,5.07052763,199.58,199.53,38.9]
[1756709022309,3.66419326,199.54,199.53,38.9]
[1756709026303,3.66419326,199.54,199.5,116.03]
[1756709026611,3.66419326,199.52,199.51,38.9]
[1756709027107,5.01082894,199.57,199.51,38.88]
[1756709027306,3.66419326,199.53,199.51,38.88]
[1756709028111,3.66419326,199.53,199.51,43.8922392]
[1756709029021,3.66419326,199.53,199.51,5.0122392]
[1756709029197,3.66419326,199.53,199.52,38.88]
[1756709029610,0.06,199.58,199.52,43.89201182]
[1756709029796,3.66419326,199.53,199.52,43.89201182]
[1756709029997,3.66419326,199.53,199.52,38.88]
[1756709030814,0.06,199.58,199.52,38.88]
[1756709031313,3.66419326,199.54,199.52,38.88]
[1756709031499,0.06,199.58,199.53,5.01177767]
[1756709031694,0.06,199.58,199.54,38.88]
[1756709032105,0.06,199.58,199.54,42.54419326]
[1756709032415,0.06,199.58,199.54,158.54419326]
[1756709033018,0.06,199.58,199.54,154.88]
[1756709033693,3.72419326,199.58,199.55,5.01127536]
[1756709033994,3.72419326,199.58,199.56,38.88]
[1756709034312,3.66419326,199.57,199.54,121.01148594]
[1756709034613,3.66419326,199.57,199.55,38.88]
[1756709035421,3.66419326,199.56,199.55,38.88]
[1756709041423,8.67531866,199.56,199.55,38.88]
[1756709041636,3.66419326,199.56,199.55,38.88]
[1756709042706,0.06,199.58,199.55,38.88]
[1756709042936,3.66419326,199.56,199.55,38.88]
[1756709043702,3.72419326,199.58,199.55,38.88]
[1756709044740,3.72419326,199.58,199.55,43.89127536]
[1756709044915,3.66419326,199.56,199.52,0.14216157]
[1756709045115,3.66419326,199.55,199.53,38.88]
[1756709045513,3.66419326,199.54,199.51,0.03]
[1756709045710,5.07053787,199.58,199.51,0.03]
[1756709045711,3.66419326,199.52,199.51,0.03]
[1756709045916,3.66419326,199.52,199.51,38.91]
[1756709047422,5.01139321,199.55,199.51,38.91]
[1756709047612,3.66419326,199.52,199.51,0.03]
[1756709047810,3.66419326,199.52,199.51,38.89]
[1756709048623,3.66419326,199.52,199.51,154.89]
[1756709048834,5.01106644,199.56,199.51,154.89]
[1756709048835,3.66419326,199.55,199.51,159.90228008]
[1756709049044,3.66419326,199.56,199.51,159.90228008]
[1756709049826,0.06,199.58,199.52,0.14216157]
[1756709050027,0.06,199.58,199.53,38.86]
[1756709050407,3.72419326,199.58,199.53,38.86]
[1756709050917,0.06,199.58,199.54,3.80635483]
[1756709051121,0.06,199.58,199.55,38.86]
[1756709051324,0.06,199.58,199.56,3.80635483]
[1756709051635,0.06,199.58,199.57,39.00216157]
[1756709051832,0.06,199.58,199.57,0.14216157]
[1756709052146,0.06,199.58,199.57,44.01293473]
[1756709052734,0.06,199.58,199.57,5.15293473]
[1756709052920,0.06,199.58,199.57,44.01293473]
[1756709053635,0.06,199.58,199.57,5.15293473]
[1756709053928,0.06,199.58,199.57,44.01293473]
[1756709054733,0.06,199.58,199.57,160.01293473]
[1756709055107,0.06,199.58,199.57,155.00216157]
[1756709056534,0.06,199.58,199.57,160.01293473]
[1756709060832,0.06,199.58,199.57,39.00216157]
[1756709063326,0.06,199.58,199.57,5.15293473]
[1756709063532,0.06,199.58,199.57,44.01293473]
[1756709064036,0.06,199.58,199.57,160.01293473]
[1756709066940,0.06,199.58,199.57,44.01293473]
[1756709068027,0.06,199.58,199.57,39.00216157]
[1756709068435,3.72419326,199.58,199.55,5.01120962]
[1756709068619,0.06,199.58,199.56,38.98216157]
[1756709068819,3.72419326,199.58,199.56,38.98216157]
[1756709069841,3.72419326,199.58,199.56,159.99317339]
[1756709070042,0.06,199.58,199.56,159.99317339]
[1756709071628,0.06,199.58,199.56,163.65736665]
[1756709073028,0.06,199.58,199.56,47.65736665]
[1756709074246,0.06,199.58,199.56,52.66589365]
[1756709075927,0.06,199.58,199.56,168.66589365]
[1756709076550,0.06,199.58,199.56,165.00170039]
[1756709076747,0.06,199.58,199.56,168.66589365]
[1756709079530,0.06,199.58,199.56,165.00170039]
[1756709079728,0.06,199.58,199.56,168.66589365]
[1756709082438,0.06,199.58,199.56,126.16170039]
[1756709082638,0.06,199.58,199.57,38.98216157]
[1756709083632,0.06,199.58,199.57,43.99293473]
[1756709087057,0.06,199.58,199.57,5.15293473]
[1756709087262,0.06,199.58,199.57,43.97293473]
[1756709088538,0.06,199.58,199.57,159.97293473]
[1756709091852,0.06,199.58,199.57,43.97293473]
[1756709094867,0.06,199.58,199.57,159.97293473]
[1756709095040,0.06,199.58,199.57,154.96216157]
[1756709095477,0.06,199.58,199.57,159.97293473]
[1756709097643,0.06,199.58,199.57,121.15293473]
[1756709097851,0.06,199.58,199.57,159.97293473]
[1756709100462,0.06,199.58,199.57,116.14216157]
[1756709100682,3.72419326,199.58,199.56,5.008527]
[1756709100968,3.66419326,199.57,199.52,0.03]
[1756709101143,3.66419326,199.55,199.53,38.82]
[1756709101348,3.66419326,199.54,199.52,0.03]
[1756709101550,3.66419326,199.53,199.52,0.03]
[1756709101754,3.66419326,199.53,199.52,38.85]
[1756709102347,5.07053389,199.58,199.52,38.85]
[1756709102564,3.66419326,199.53,199.52,38.85]
[1756709102955,0.06,199.58,199.53,0.14216157]
[1756709103147,3.72419326,199.58,199.55,0.14216157]
[1756709103351,3.72419326,199.58,199.56,38.82]
[1756709103554,3.72419326,199.58,199.56,154.82]
[1756709103766,3.66419326,199.57,199.53,5.21269557]
[1756709103974,3.66419326,199.54,199.52,0.03]
[1756709104157,3.66419326,199.53,199.52,0.03]
[1756709104469,8.67597093,199.53,199.52,0.03]
[1756709104673,3.66419326,199.53,199.52,38.85]
[1756709105772,8.67597093,199.53,199.52,0.03]
[1756709105961,8.67597093,199.53,199.52,38.85]
[1756709108456,5.01177767,199.53,199.52,38.85]
[1756709108656,8.67597093,199.53,199.52,38.85]
[1756709109362,3.66419326,199.53,199.52,0.03]
[1756709109557,3.66419326,199.53,199.52,38.85]
[1756709111181,5.01133588,199.55,199.52,38.85]
[1756709111376,3.66419326,199.53,199.52,38.85]
[1756709111679,3.66419326,199.53,199.52,0.03]
[1756709112183,3.66419326,199.53,199.52,38.85]
[1756709112672,8.67597093,199.53,199.52,38.85]
[1756709112869,8.67597093,199.53,199.52,0.03]
[1756709113074,8.67597093,199.53,199.52,38.85]
[1756709114055,8.67597093,199.53,199.52,0.03]
[1756709114380,8.67597093,199.53,199.52,38.85]
[1756709115474,3.66419326,199.53,199.52,38.85]
[1756709115969,8.67597093,199.53,199.52,38.85]
[1756709116871,3.66419326,199.53,199.52,38.85]
[1756709117295,3.66419326,199.54,199.52,43.86202849]
[1756709117589,3.66419326,199.56,199.52,43.86202849]
[1756709117974,3.66419326,199.55,199.52,43.86202849]
[1756709118303,3.66419326,199.54,199.52,43.86202849]
[1756709118464,3.66419326,199.55,199.52,43.86202849]
[1756709119384,0.06,199.58,199.52,43.86202849]
[1756709119385,3.72419326,199.58,199.53,0.14216157]
[1756709119586,3.66419326,199.57,199.55,0.14216157]
[1756709119784,3.66419326,199.57,199.56,38.82]
[1756709120094,0.06,199.58,199.56,38.82]
[1756709120260,0.06,199.58,199.57,0.14216157]
[1756709120583,3.72419326,199.58,199.57,38.82]
[1756709120776,0.06,199.58,199.57,38.82]
[1756709121174,0.06,199.58,199.57,43.97293473]
[1756709121764,0.06,199.58,199.57,0.14216157]
[1756709121968,3.72419326,199.58,199.57,38.82]
[1756709122490,3.72419326,199.58,199.57,154.82]
[1756709122681,3.72419326,199.58,199.57,116.0]
[1756709123085,3.72419326,199.58,199.57,38.82]
[1756709123593,0.06,199.58,199.57,43.97293473]
[1756709124089,3.66419326,199.61,199.57,43.97293473]
[1756709124090,2.46216275,199.61,199.58,0.14216157]
[1756709124390,3.66419326,199.6,199.59,38.8]
[1756709125394,0.06,199.62,199.59,43.81025385]
[1756709125564,3.66419326,199.61,199.59,43.81025385]
[1756709125971,3.66419326,199.61,199.6,38.8]
[1756709127699,3.66419326,199.61,199.57,0.14216157]
[1756709127877,5.06959342,199.62,199.58,38.8]
[1756709128996,3.66419326,199.59,199.58,38.8]
[1756709129572,3.66419326,199.59,199.55,116.0]
[1756709129778,3.66419326,199.57,199.56,38.8]
[1756709131693,3.66419326,199.57,199.52,0.03]
[1756709131902,5.01071826,199.58,199.53,38.8]
[1756709132596,5.01071826,199.58,199.54,38.8]
[1756709133006,3.66419326,199.55,199.54,38.8]
[1756709134214,3.66419326,199.55,199.52,0.03]
[1756709134215,8.67555805,199.55,199.52,0.03]
[1756709134396,3.66419326,199.53,199.52,0.03]
[1756709134702,3.66419326,199.53,199.52,38.83]
[1756709135481,8.67597093,199.53,199.52,38.83]
[1756709136106,3.66419326,199.53,199.52,38.83]
[1756709136496,5.01155966,199.54,199.52,38.83]
[1756709136678,3.66419326,199.53,199.52,38.83]